fUST/lending_fUST_20250708
["ID","MTS","AMOUNT","RATE_DAILY","PERIOD"]
[370381620,1751987475362,-1227.68,0.00023287,2]
[370381621,1751987475371,-460.0,0.00023287,2]
[370381622,1751987475382,-2315.09,0.00023287,2]
[370381623,1751987475392,-779.96,0.00023287,2]
[370381624,1751987475402,-768.26,0.00023287,2]
[370381625,1751987475412,-1247.08,0.00023287,2]
[370381626,1751987475421,-470.17125785,0.00023287,2]
[370381627,1751987475431,-814.03,0.00023287,2]
[370381628,1751987475440,-1458.11,0.00023287,2]
[370381629,1751987475450,-1873.14,0.00023287,2]
[370381630,1751987475459,-460.0,0.00023287,2]
[370381631,1751987475468,-503.68,0.00023287,2]
[370381632,1751987475477,-510.97,0.00023287,2]
[370381633,1751987475486,-460.0,0.00023287,2]
[370381634,1751987475495,-1198.65,0.00023287,2]
[370381635,1751987475504,-485.36,0.00023287,2]
[370381636,1751987475514,-3642.47,0.00023287,2]
[370381637,1751987475523,-3488.24,0.00023287,2]
[370381638,1751987475532,-881.6,0.00023287,2]
[370381639,1751987475541,-529.87844676,0.00023287,2]
[370381640,1751987475550,-1190.04,0.00023287,2]
[370381641,1751987475559,-5308.08,0.00023287,2]
[370381642,1751987475569,-858.29,0.00023287,2]
[370381643,1751987475578,-320.71741222,0.00023287,2]
[370381644,1751987475587,-693.69,0.00023287,2]
[370381645,1751987475597,-889.03,0.00023287,2]
[370381646,1751987475605,-911.11,0.00023287,2]
[370381647,1751987475615,-849.52,0.00023287,2]
[370381648,1751987475624,-1608.55,0.00023287,2]
[370381649,1751987475636,-512.35,0.00023287,2]
[370381650,1751987475646,-1680.8,0.00023287,2]
[370381651,1751987475655,-3263.91,0.00023287,2]
[370381652,1751987475665,-825.63,0.00023287,2]
[370381653,1751987475674,-1917.38,0.00023287,2]
[370381654,1751987475683,-460.0,0.00023287,2]
[370381655,1751987475693,-207.72812,0.00023287,7]
[370381656,1751987475702,-207.72812,0.00023287,7]
[370381657,1751987475711,-1349.37,0.00023287,2]
[370381658,1751987475721,-7169.81,0.00023287,2]
[370381659,1751987475730,-460.0,0.00023287,2]
[370381660,1751987475740,-764.25,0.00023287,2]
[370381661,1751987475749,-3212.24,0.00023287,2]
[370381662,1751987475759,-975.12,0.00023287,2]
[370381663,1751987475768,-3732.02,0.00023287,2]
[370381664,1751987475777,-460.0,0.00023287,2]
[370381665,1751987475786,-517.2,0.00023287,2]
[370381666,1751987475795,-1124.04,0.00023287,2]
[370381667,1751987475804,-151.0,0.00023288,7]
[370381668,1751987475813,-151.16380395,0.00023288,2]
[370381669,1751987475822,-151.0,0.0002329,7]
[370381670,1751987475831,-151.0,0.0002329,7]
[370381671,1751987475840,-151.0,0.0002329,7]
[370381672,1751987475849,-151.0,0.0002329,7]
[370381673,1751987475858,-153.33891493,0.0002329,4]
[370381674,1751987475867,-153.33891493,0.0002329,4]
[370381675,1751987475877,-153.33891493,0.0002329,4]
[370381676,1751987475886,-153.33,0.0002329,4]
[370381677,1751987475895,-159.018134,0.0002329,4]
[370381678,1751987475904,-159.018134,0.0002329,4]
[370381679,1751987475913,-159.018134,0.0002329,4]
[370381680,1751987475922,-159.018134,0.0002329,4]
[370381681,1751987475932,-159.018134,0.0002329,4]
[370381682,1751987475941,-159.018134,0.0002329,4]
[370381683,1751987475950,-159.018134,0.0002329,4]
[370381684,1751987475959,-159.018134,0.0002329,4]
[370381685,1751987475968,-159.01,0.0002329,4]
[370381686,1751987475977,-298.55152593,0.0002329,4]
[370381687,1751987475987,-298.55152593,0.0002329,4]
[370381688,1751987475996,-298.55152593,0.0002329,4]
[370381689,1751987476005,-298.55152593,0.0002329,4]
[370381690,1751987476014,-298.55152593,0.0002329,4]
[370381691,1751987476023,-298.55152593,0.0002329,4]
[370381692,1751987476032,-298.55152593,0.0002329,4]
[370381693,1751987476041,-298.55152593,0.0002329,4]
[370381694,1751987476050,-298.55152593,0.0002329,4]
[370381695,1751987476060,-298.55152593,0.0002329,4]
[370381696,1751987476069,-298.55152593,0.0002329,4]
[370381697,1751987476078,-298.55152593,0.0002329,4]
[370381698,1751987476087,-298.55152593,0.0002329,4]
[370381699,1751987476096,-298.55152593,0.0002329,4]
[370381700,1751987476237,-298.55152593,0.0002329,4]
[370381701,1751987476247,-298.55152593,0.0002329,4]
[370381702,1751987476258,-298.55152593,0.0002329,4]
[370381703,1751987476267,-298.55152593,0.0002329,4]
[370381704,1751987476276,-298.55152593,0.0002329,4]
[370381705,1751987476286,-298.55,0.0002329,4]
[370381706,1751987476295,-696.62022716,0.0002329,4]
[370381707,1751987476303,-696.62022716,0.0002329,4]
[370381708,1751987476313,-696.62022716,0.0002329,4]
[370381709,1751987476322,-696.62022716,0.0002329,4]
[370381710,1751987476331,-696.62022716,0.0002329,4]
[370381711,1751987476340,-696.62022716,0.0002329,4]
[370381712,1751987476350,-696.62022716,0.0002329,4]
[370381713,1751987476359,-696.62022716,0.0002329,4]
[370381714,1751987476368,-696.62022716,0.0002329,4]
[370381715,1751987476379,-696.62022716,0.0002329,4]
[370381716,1751987476388,-696.62022716,0.0002329,4]
[370381717,1751987476398,-696.62022716,0.0002329,4]
[370381718,1751987476407,-696.62022716,0.0002329,4]
[370381719,1751987476416,-696.62022716,0.0002329,4]
[370381720,1751987476426,-696.62022716,0.0002329,4]
[370381721,1751987476436,-696.62022716,0.0002329,4]
[370381722,1751987476445,-696.62022716,0.0002329,4]
[370381723,1751987476455,-696.62022716,0.0002329,4]
[370381724,1751987476465,-696.62022716,0.0002329,4]
[370381725,1751987476475,-696.62,0.0002329,4]
[370381726,1751987476484,-341.6,0.00023297,2]
[370381727,1751987476494,-10000.0,0.000233,10]
[370381728,1751987476503,-405.481259,0.00023315,7]
[370381729,1751987476512,-405.481259,0.00023315,7]
[370381730,1751987476522,-151.0,0.00023315,7]
[370381731,1751987476532,-151.0,0.00023315,7]
[370381732,1751987476541,-151.0,0.00023315,7]
[370381733,1751987476550,-151.0,0.00023315,7]
[370381734,1751987476559,-151.0,0.00023315,7]
[370381735,1751987476569,-151.0,0.00023315,7]
[370381736,1751987476579,-204.294437,0.00023315,7]
[370381737,1751987476594,-204.294437,0.00023315,7]
[370381738,1751987476609,-2065.56,0.00023323,5]
[370381739,1751987476619,-151.0,0.00023332,7]
[370381740,1751987476630,-167.984,0.00023355,2]
[370381741,1751987476639,-1319.22748375,0.00023396,2]
[370381742,1751987476648,-2000.0,0.000234,2]
[370381743,1751987476658,-2000.0,0.000234,2]
[370381744,1751987476668,-3853.49006069,0.00023417,9]
[370381745,1751987476678,-2065.56,0.00023423,6]
[370381746,1751987476687,-9781.80335578,0.000235,2]
[370381747,1751987476697,-167.399411,0.000235,2]
[370381748,1751987476706,-167.399411,0.000235,2]
[370381749,1751987476715,-217.182618,0.000235,7]
[370381750,1751987476724,-217.182618,0.000235,7]
[370381751,1751987476734,-151.0,0.000235,7]
[370381752,1751987476743,-2065.56,0.00023523,4]
[370381753,1751987476753,-151.0,0.00023561,7]
[370381754,1751987476763,-245.0,0.00023561,7]
[370381755,1751987476772,-151.0,0.00023561,7]
[370381756,1751987476782,-205.968588,0.00023561,7]
[370381757,1751987476791,-205.968588,0.00023561,7]
[370381758,1751987476801,-151.0,0.00023561,7]
[370381759,1751987476810,-151.0,0.00023561,7]
[370381760,1751987476820,-520.37,0.00023561,2]
[370381761,1751987476829,-644.05,0.00023561,2]
[370381762,1751987476838,-460.0,0.00023561,2]
[370381763,1751987476847,-460.0,0.00023561,2]
[370381764,1751987476857,-590.3,0.00023561,2]
[370381765,1751987476867,-215.7145797,0.00023561,2]
[370381766,1751987476876,-460.0,0.00023561,2]
[370381767,1751987476886,-571.79,0.00023561,2]
[370381768,1751987476895,-655.17,0.00023561,2]
[370381769,1751987476905,-460.0,0.00023561,2]
[370381770,1751987476914,-1068.61,0.00023561,2]
[370381771,1751987476924,-990.47,0.00023561,2]
[370381772,1751987476934,-529.08,0.00023561,2]
[370381773,1751987476943,-1094.43,0.00023561,2]
[370381774,1751987476952,-610.0,0.00023561,2]
[370381775,1751987476962,-702.73,0.00023561,2]
[370381776,1751987476972,-460.0,0.00023561,2]
[370381777,1751987476982,-460.0,0.00023561,2]
[370381778,1751987476991,-2535.92,0.00023561,2]
[370381779,1751987477001,-1117.62,0.00023561,2]
[370381780,1751987477010,-460.0,0.00023561,2]
[370381781,1751987477019,-460.0,0.00023561,2]
[370381782,1751987477029,-489.06,0.00023561,2]
[370381783,1751987477039,-638.54,0.00023561,2]
[370381784,1751987477049,-101.61075621,0.00023561,2]
[370381785,1751987477070,-358.38924379,0.00023561,2]
[370381786,1751987477079,-906.56,0.00023561,2]
[370381787,1751987477088,-6605.47,0.00023561,2]
[370381788,1751987477098,-1836.51,0.00023561,2]
[370381789,1751987477109,-3531.13,0.00023561,2]
[370381790,1751987477118,-769.53,0.00023561,2]
[370381791,1751987477128,-4999.22,0.00023561,2]
[370381792,1751987477138,-1438.66,0.00023561,2]
[370381793,1751987477147,-1029.02,0.00023561,2]
[370381794,1751987477157,-551.13,0.00023561,2]
[370381795,1751987477166,-3199.43,0.00023561,2]
[370381796,1751987477177,-1136.93,0.00023561,2]
[370381797,1751987477188,-802.39,0.00023561,2]
[370381798,1751987477197,-1227.68,0.00023561,2]
[370381799,1751987477207,-460.0,0.00023561,2]
[370381800,1751987477216,-2315.09,0.00023561,2]
[370381801,1751987477226,-779.96,0.00023561,2]
[370381802,1751987477236,-768.26,0.00023561,2]
[370381803,1751987477247,-1247.08,0.00023561,2]
[370381804,1751987477257,-814.03,0.00023561,2]
[370381805,1751987477267,-1458.11,0.00023561,2]
[370381806,1751987477276,-1873.14,0.00023561,2]
[370381807,1751987477287,-460.0,0.00023561,2]
[370381808,1751987477296,-503.68,0.00023561,2]
[370381809,1751987477306,-510.97,0.00023561,2]
[370381810,1751987477317,-331.59003336,0.00023561,2]
[370381811,1751987477327,-1198.65,0.00023561,2]
[370381812,1751987477336,-485.36,0.00023561,2]
[370381813,1751987477347,-3642.47,0.00023561,2]
[370381814,1751987477356,-3488.24,0.00023561,2]
[370381815,1751987477367,-881.6,0.00023561,2]
[370381816,1751987477377,-1190.04,0.00023561,2]
[370381817,1751987477386,-5308.08,0.00023561,2]
[370381818,1751987477398,-858.29,0.00023561,2]
[370381819,1751987477409,-693.69,0.00023561,2]
[370381820,1751987477420,-889.03,0.00023561,2]
[370381821,1751987477430,-911.11,0.00023561,2]
[370381822,1751987477440,-849.52,0.00023561,2]
[370381823,1751987477449,-1608.55,0.00023561,2]
[370381824,1751987477459,-512.35,0.00023561,2]
[370381825,1751987477468,-1680.8,0.00023561,2]
[370381826,1751987477477,-1400.53456928,0.00023561,2]
[370381827,1751987477490,-684.13106432,0.00023561,2]
[370381828,1751987477503,-468.55808915,0.00023561,2]
[370381829,1751987477514,-710.68627725,0.00023561,2]
[370381830,1751987477523,-825.63,0.00023561,2]
[370381831,1751987477532,-291.20662275,0.00023561,2]
[370381832,1751987477544,-749.8638399,0.00023561,2]
[370381833,1751987477556,-876.30953735,0.00023561,2]
[370381834,1751987477566,-460.0,0.00023561,2]
[370381835,1751987477575,-1349.37,0.00023561,2]
[370381836,1751987477584,-3623.52803405,0.00023561,2]
[370381837,1751987477596,-3546.28196595,0.00023561,2]
[370381838,1751987477606,-460.0,0.00023561,2]
[370381839,1751987477615,-764.25,0.00023561,2]
[370381840,1751987477624,-246.60801413,0.00023561,2]
[370381841,1751987477636,-500.0,0.00023561,2]
[370381842,1751987477648,-2465.63198587,0.00023561,2]
[370381843,1751987477657,-903.97436072,0.00023561,2]
[370381844,1751987477668,-71.14563928,0.00023561,2]
[370381845,1751987477677,-798.62848316,0.00023561,2]
[370381846,1751987477813,-460.0,0.0002,2]
[370381847,1751987477822,-460.0,0.00020273,2]
[370381848,1751987477831,-460.0,0.00020547,2]
[370381849,1751987477841,-460.0,0.00020821,2]
[370381850,1751987477851,-242.96014719,0.00021095,2]
[370381851,1751987477863,-217.03985281,0.00021095,2]
[370381852,1751987477872,-345.03506329,0.00021369,2]
[370381853,1751987477885,-114.96493671,0.00021369,2]
[370381854,1751987477895,-460.0,0.00021643,2]
[370381855,1751987477905,-1545.75527574,0.00021682,2]
[370381856,1751987477922,-460.0,0.00019178,2]
[370381857,1751987477931,-163.62611706,0.00021682,2]
[370381858,1751987478082,-336.92244762,0.00019178,2]
[370381859,1751987478093,-254.45860606,0.00019178,2]
[370381860,1751987478104,-5306.61950028,0.00019178,2]
[370381861,1751987478114,-460.0,0.00019178,2]
[370381862,1751987478124,-9129.35429273,0.00021682,2]
[370381863,1751987478134,-318.0,0.0002178,2]
[370381864,1751987478143,-460.0,0.00021917,2]
[370381865,1751987478152,-460.0,0.00022191,2]
[370381866,1751987478162,-460.0,0.00022465,2]
[370381867,1751987478171,-460.0,0.00022739,2]
[370381868,1751987478185,-241.24142712,0.00023013,2]
[370381869,1751987478194,-2933.39151684,0.00023561,2]
[370381870,1751987478203,-580.63043695,0.00023561,2]
[370381871,1751987478213,-517.2,0.00023561,2]
[370381872,1751987478224,-1124.04,0.00023561,2]
[370381873,1751987478233,-600.0,0.00023562,2]
[370381874,1751987478243,-227.68154921,0.00023562,2]
[370381875,1751987478252,-3528.31450929,0.000236,3]
[370381876,1751987478263,-4774.09,0.000236,7]
[370381877,1751987478273,-231.28369723,0.0002362,2]
[370381878,1751987478282,-2065.56,0.00023623,3]
[370381879,1751987478292,-3853.49006069,0.00023624,9]
[370381880,1751987478301,-2000.0,0.000237,2]
[370381881,1751987478311,-2065.56,0.00023723,3]
[370381882,1751987478320,-500.0,0.00023746,2]
[370381883,1751987478330,-134148.26,0.000238,2]
[370381884,1751987478339,-7382.5,0.000238,7]
[370381885,1751987478348,-151.0,0.000238,7]
[370381886,1751987478358,-204.830223,0.000238,7]
[370381887,1751987478367,-204.830223,0.000238,7]
[370381888,1751987478376,-151.0,0.000238,7]
[370381889,1751987478385,-151.0,0.000238,7]
[370381890,1751987478394,-161.121423,0.000238,7]
[370381891,1751987478404,-411.498511,0.000238,7]
[370381892,1751987478413,-217.819591,0.000238,7]
[370381893,1751987478422,-411.498511,0.000238,7]
[370381894,1751987478431,-217.819591,0.000238,7]
[370381895,1751987478441,-156.409,0.000238,7]
[370381896,1751987478451,-156.409,0.000238,7]
[370381897,1751987478460,-151.0,0.000238,7]
[370381898,1751987478469,-151.0,0.000238,7]
[370381899,1751987478478,-176.885615,0.000238,7]
[370381900,1751987478620,-292.692506,0.000238,7]
[370381901,1751987478630,-292.692506,0.000238,7]
[370381902,1751987478640,-151.0,0.000238,7]
[370381903,1751987478650,-273.071109,0.000238,7]
[370381904,1751987478659,-151.0,0.000238,7]
[370381905,1751987478668,-151.0,0.000238,7]
[370381906,1751987478678,-157.67525,0.000238,7]
[370381907,1751987478687,-157.67525,0.000238,7]
[370381908,1751987478696,-1534.893139,0.000238,14]
[370381909,1751987478706,-207.72812,0.000238,7]
[370381910,1751987478716,-207.72812,0.000238,7]
[370381911,1751987478725,-2065.56,0.00023823,4]
[370381912,1751987478735,-3853.49006069,0.00023831,10]
[370381913,1751987478744,-151.0,0.00023835,7]
[370381914,1751987478754,-204.102071,0.00023835,7]
[370381915,1751987478764,-204.102071,0.00023835,7]
[370381916,1751987478773,-151.0,0.00023835,7]
[370381917,1751987478783,-151.0,0.00023835,7]
[370381918,1751987478793,-151.0,0.00023835,7]
[370381919,1751987478802,-520.37,0.00023835,2]
[370381920,1751987478811,-644.05,0.00023835,2]
[370381921,1751987478820,-460.0,0.00023835,2]
[370381922,1751987478830,-220.236511,0.00023835,7]
[370381923,1751987478839,-151.0,0.00023835,7]
[370381924,1751987478848,-151.0,0.00023835,7]
[370381925,1751987478857,-590.3,0.00023835,2]
[370381926,1751987478867,-460.0,0.00023835,2]
[370381927,1751987478876,-571.79,0.00023835,2]
[370381928,1751987478885,-655.17,0.00023835,2]
[370381929,1751987478895,-460.0,0.00023835,2]
[370381930,1751987478905,-151.0,0.00023835,7]
[370381931,1751987478914,-151.0,0.00023835,7]
[370381932,1751987478924,-151.0,0.00023835,7]
[370381933,1751987478934,-1068.61,0.00023835,2]
[370381934,1751987478944,-990.47,0.00023835,2]
[370381935,1751987478953,-529.08,0.00023835,2]
[370381936,1751987478962,-1094.43,0.00023835,2]
[370381937,1751987478972,-610.0,0.00023835,2]
[370381938,1751987478981,-702.73,0.00023835,2]
[370381939,1751987478991,-460.0,0.00023835,2]
[370381940,1751987479000,-460.0,0.00023835,2]
[370381941,1751987479010,-2535.92,0.00023835,2]
[370381942,1751987479019,-1099.43168219,0.00023835,2]
[370381943,1751987479169,-461.88178036,0.00019178,2]
[370381944,1751987479182,-58.14210258,0.00019452,2]
[370381945,1751987479194,-311.86611398,0.00019452,2]
[370381946,1751987479203,-147.51770419,0.00022276,2]
[370381947,1751987479215,-10691.21798134,0.00022276,2]
[370381948,1751987479224,-159.5204994,0.00022822,2]
[370381949,1751987479234,-525.03036055,0.000232,10]
[370381950,1751987479243,-18.18831781,0.00023835,2]
[370381951,1751987479255,-151.0,0.00023835,7]
[370381952,1751987479264,-460.0,0.00023835,2]
[370381953,1751987479274,-460.0,0.00023835,2]
[370381954,1751987479283,-204.294437,0.00023835,7]
[370381955,1751987479293,-638.54,0.00023835,2]
[370381956,1751987479302,-489.06,0.00023835,2]
[370381957,1751987479312,-204.294437,0.00023835,7]
[370381958,1751987479320,-309.15587073,0.00023835,2]
[370381959,1751987479330,-906.56,0.00023835,2]
[370381960,1751987479339,-6605.47,0.00023835,2]
[370381961,1751987479348,-217.182618,0.00023835,7]
[370381962,1751987479357,-217.182618,0.00023835,7]
[370381963,1751987479366,-3531.13,0.00023835,2]
[370381964,1751987479376,-769.53,0.00023835,2]
[370381965,1751987479386,-4999.22,0.00023835,2]
[370381966,1751987479396,-1438.66,0.00023835,2]
[370381967,1751987479406,-1029.02,0.00023835,2]
[370381968,1751987479416,-551.13,0.00023835,2]
[370381969,1751987479425,-3199.43,0.00023835,2]
[370381970,1751987479434,-1136.93,0.00023835,2]
[370381971,1751987479443,-151.0,0.00023835,7]
[370381972,1751987479453,-802.39,0.00023835,2]
[370381973,1751987479462,-1227.68,0.00023835,2]
[370381974,1751987479472,-307.7747624,0.00023835,2]
[370381975,1751987479481,-2315.09,0.00023835,2]
[370381976,1751987479490,-779.96,0.00023835,2]
[370381977,1751987479500,-768.26,0.00023835,2]
[370381978,1751987479509,-1247.08,0.00023835,2]
[370381979,1751987479519,-814.03,0.00023835,2]
[370381980,1751987479528,-1458.11,0.00023835,2]
[370381981,1751987479537,-1873.14,0.00023835,2]
[370381982,1751987479546,-460.0,0.00023835,2]
[370381983,1751987479555,-503.68,0.00023835,2]
[370381984,1751987479565,-510.97,0.00023835,2]
[370381985,1751987479574,-1198.65,0.00023835,2]
[370381986,1751987479583,-485.36,0.00023835,2]
[370381987,1751987479592,-3642.47,0.00023835,2]
[370381988,1751987479601,-3488.24,0.00023835,2]
[370381989,1751987479610,-881.6,0.00023835,2]
[370381990,1751987479620,-1190.04,0.00023835,2]
[370381991,1751987479629,-5308.08,0.00023835,2]
[370381992,1751987479639,-858.29,0.00023835,2]
[370381993,1751987479648,-693.69,0.00023835,2]
[370381994,1751987479657,-889.03,0.00023835,2]
[370381995,1751987479667,-911.11,0.00023835,2]
[370381996,1751987479677,-849.52,0.00023835,2]
[370381997,1751987479686,-1608.55,0.00023835,2]
[370381998,1751987479696,-512.35,0.00023835,2]
[370381999,1751987479706,-1680.8,0.00023835,2]
[370382000,1751987479716,-3263.91,0.00023835,2]
[370382001,1751987479726,-825.63,0.00023835,2]
[370382002,1751987479735,-1917.38,0.00023835,2]
[370382003,1751987479745,-460.0,0.00023835,2]
[370382004,1751987479755,-1349.37,0.00023835,2]
[370382005,1751987479765,-7169.81,0.00023835,2]
[370382006,1751987479774,-460.0,0.00023835,2]
[370382007,1751987479784,-764.25,0.00023835,2]
[370382008,1751987479793,-3212.24,0.00023835,2]
[370382009,1751987479803,-975.12,0.00023835,2]
[370382010,1751987479812,-3732.02,0.00023835,2]
[370382011,1751987479822,-517.2,0.00023835,2]
[370382012,1751987479830,-1124.04,0.00023835,2]
[370382013,1751987479840,-151.0,0.00023869,7]
[370382014,1751987479849,-63348.84110102,0.0002388,7]
[370382015,1751987479859,-167.399411,0.0002388,2]
[370382016,1751987479869,-167.399411,0.0002388,2]
[370382017,1751987479879,-405.481259,0.0002388,7]
[370382018,1751987479888,-405.481259,0.0002388,7]
[370382019,1751987479898,-151.0,0.0002388,7]
[370382020,1751987479908,-248.308279,0.0002388,7]
[370382021,1751987479918,-10946.59770194,0.000239,7]
[370382022,1751987479928,-651.45372697,0.000239,2]
[370382023,1751987479937,-162.898236,0.0002392,3]
[370382024,1751987479946,-162.049155,0.0002392,3]
[370382025,1751987479955,-2065.56,0.00023923,5]
[370382026,1751987479965,-332.10575673,0.00024,14]
[370382027,1751987479975,-8000.0,0.00024,4]
[370382028,1751987479984,-544.59,0.00024,14]
[370382029,1751987479994,-160.0,0.00024,7]
[370382030,1751987480003,-4805.93487645,0.00024,7]
[370382031,1751987480013,-160.0,0.00024,7]
[370382032,1751987480023,-160.0,0.00024,7]
[370382033,1751987480033,-10019.84,0.00024,7]
[370382034,1751987480042,-160.0,0.00024,7]
[370382035,1751987480052,-101425.1,0.00024,7]
[370382036,1751987480061,-151.0,0.00024,7]
[370382037,1751987480070,-151.0,0.00024,7]
[370382038,1751987480079,-151.0,0.00024,7]
[370382039,1751987480089,-151.0,0.00024,7]
[370382040,1751987480099,-837.89306043,0.00024,7]
[370382041,1751987480108,-837.89306043,0.00024,10]
[370382042,1751987480118,-230.51100374,0.00024,7]
[370382043,1751987480127,-230.51100374,0.00024,10]
[370382044,1751987480137,-215.2437778,0.00024,7]
[370382045,1751987480146,-215.2437778,0.00024,10]
[370382046,1751987480156,-157.67525,0.00024023,7]
[370382047,1751987480165,-157.67525,0.00024023,7]
[370382048,1751987480175,-2065.56,0.00024023,6]
[370382049,1751987480188,-3853.49006069,0.00024038,10]
[370382050,1751987480197,-151.606117,0.00024109,7]
[370382051,1751987480207,-151.0,0.00024109,7]
[370382052,1751987480217,-205.968588,0.00024109,7]
[370382053,1751987480228,-205.968588,0.00024109,7]
[370382054,1751987480237,-151.0,0.00024109,7]
[370382055,1751987480247,-151.0,0.00024109,7]
[370382056,1751987480260,-520.37,0.00024109,2]
[370382057,1751987480269,-644.05,0.00024109,2]
[370382058,1751987480279,-500.0,0.00024109,2]
[370382059,1751987480288,-460.0,0.00024109,2]
[370382060,1751987480298,-151.0,0.00024109,7]
[370382061,1751987480307,-151.0,0.00024109,7]
[370382062,1751987480317,-151.0,0.00024109,7]
[370382063,1751987480327,-151.084693,0.00024109,7]
[370382064,1751987480336,-590.3,0.00024109,2]
[370382065,1751987480346,-460.0,0.00024109,2]
[370382066,1751987480356,-571.79,0.00024109,2]
[370382067,1751987480366,-655.17,0.00024109,2]
[370382068,1751987480376,-460.0,0.00024109,2]
[370382069,1751987480386,-151.0,0.00024109,7]
[370382070,1751987480395,-293.280343,0.00024109,7]
[370382071,1751987480404,-1068.61,0.00024109,2]
[370382072,1751987480413,-990.47,0.00024109,2]
[370382073,1751987480423,-529.08,0.00024109,2]
[370382074,1751987480432,-1094.43,0.00024109,2]
[370382075,1751987480441,-610.0,0.00024109,2]
[370382076,1751987480451,-702.73,0.00024109,2]
[370382077,1751987480460,-460.0,0.00024109,2]
[370382078,1751987480470,-460.0,0.00024109,2]
[370382079,1751987480479,-2535.92,0.00024109,2]
[370382080,1751987480489,-1117.62,0.00024109,2]
[370382081,1751987480498,-151.0,0.00024109,7]
[370382082,1751987480519,-460.0,0.00024109,2]
[370382083,1751987480530,-460.0,0.00024109,2]
[370382084,1751987480540,-204.294437,0.00024109,7]
[370382085,1751987480550,-638.54,0.00024109,2]
[370382086,1751987480559,-489.06,0.00024109,2]
[370382087,1751987480569,-204.294437,0.00024109,7]
[370382088,1751987480579,-906.56,0.00024109,2]
[370382089,1751987480588,-6605.47,0.00024109,2]
[370382090,1751987480597,-217.182618,0.00024109,7]
[370382091,1751987480607,-217.182618,0.00024109,7]
[370382092,1751987480616,-3531.13,0.00024109,2]
[370382093,1751987480626,-769.53,0.00024109,2]
[370382094,1751987480636,-4999.22,0.00024109,2]
[370382095,1751987480646,-1438.66,0.00024109,2]
[370382096,1751987480656,-1029.02,0.00024109,2]
[370382097,1751987480666,-551.13,0.00024109,2]
[370382098,1751987480676,-3199.43,0.00024109,2]
[370382099,1751987480685,-1136.93,0.00024109,2]
[370382100,1751987480695,-802.39,0.00024109,2]
[370382101,1751987480704,-1227.68,0.00024109,2]
[370382102,1751987480887,-2315.09,0.00024109,2]
[370382103,1751987480899,-779.96,0.00024109,2]
[370382104,1751987480909,-1247.08,0.00024109,2]
[370382105,1751987480919,-768.26,0.00024109,2]
[370382106,1751987480930,-814.03,0.00024109,2]
[370382107,1751987480939,-1458.11,0.00024109,2]
[370382108,1751987480948,-1873.14,0.00024109,2]
[370382109,1751987480958,-460.0,0.00024109,2]
[370382110,1751987480968,-503.68,0.00024109,2]
[370382111,1751987480977,-510.97,0.00024109,2]
[370382112,1751987480986,-1198.65,0.00024109,2]
[370382113,1751987480995,-485.36,0.00024109,2]
[370382114,1751987481004,-3642.47,0.00024109,2]
[370382115,1751987481014,-3488.24,0.00024109,2]
[370382116,1751987481024,-881.6,0.00024109,2]
[370382117,1751987481033,-1190.04,0.00024109,2]
[370382118,1751987481043,-5308.08,0.00024109,2]
[370382119,1751987481053,-858.29,0.00024109,2]